Cogmind - Beta 14 @@@ ROGUE MODE // 2024.08.13 @ 07:02:24 Player: ph0 Result: Destroyed by D-53 Grenadier with Mini Grenade Launcher Performance ------------- Evolutions (0) 0 Regions Visited (2) 400 Robots Destroyed (35) 175 Value Destroyed (586) 586 Prototype IDs (2) 40 Alien Tech Used (0) 0 Bonus (0) 0 TOTAL SCORE: 1201 Bonus ------- None Cogmind --------- Core Integrity 0/250 Matter 34/300 Energy 100/100 System Corruption 0% Temperature Cool (0) Movement Core (250) Ox4 Location -10/Mines Parts ------- > --- POWER (1) -------- (None) > --- PROPULSION (2) --- (None) > --- UTILITY (2) ------ Medium Storage Unit Visual Processing Unit > --- WEAPON (2) ------- Particle Gun > --- INVENTORY (10) --- Light Treads Aluminum Leg Wheel Heat Sink Disposable Heat Sink Structural Scanner Signal Interpreter Peak State ------------ > --- POWER ------------ Light Ion Engine > --- PROPULSION ------- Wheel Wheel > --- UTILITY ---------- Medium Storage Unit Visual Processing Unit > --- WEAPON ----------- Particle Gun Improved Assault Rifle > --- INVENTORY -------- Light Ion Engine Wheel Wheel Heat Sink Disposable Heat Sink Structural Scanner Signal Interpreter Improved Terrain Scanner Particle Gun Rocket Launcher [Rating: 12] Favorites ----------- Power Light Ion Engine Engine Light Ion Engine Propulsion Aluminum Leg Leg Aluminum Leg Wheel Wheel Utility Medium Storage Unit Device Heat Sink Storage Medium Storage Unit Processor Visual Processing Unit Weapon Particle Gun Energy Gun Particle Gun Ballistic Gun Light Assault Rifle Launcher Rocket Launcher Special Weapon Mining Laser Build | -11 -10 -10 ------- Run | Yrd Mat Min Slots Evolved . | . . . Power . | . . . Propulsion . | . . . Utility . | . . . Weapon . | . . . Parts Attached 55 | 16 39 . Power 7 | 1 6 . Engine 7 | 1 6 . Core . | . . . Reactor . | . . . Propulsion 19 | 8 11 . Treads . | . . . Leg 8 | 4 4 . Wheel 11 | 4 7 . Hover . | . . . Flight . | . . . Utility 12 | 3 9 . Device 5 | 2 3 . Storage 5 | 1 4 . Processor 2 | . 2 . Hackware . | . . . Protection . | . . . Artifact . | . . . Weapon 17 | 4 13 . Energy Gun 9 | 1 8 . Energy Cannon . | . . . Ballistic Gun 4 | 1 3 . Ballistic Cannon . | . . . Launcher 2 | . 2 . Special Weapon 2 | 2 . . Impact Weapon . | . . . Slashing Weapon . | . . . Piercing Weapon . | . . . Special Melee Weapon . | . . . Unidentified Prototypes . | . . . Parts Lost 13 | . 9 4 Power 4 | . 3 1 Propulsion 6 | . 4 2 Utility . | . . . Weapon 3 | . 2 1 Highest Loss Streak 6 | . 6 4 To Critical Strikes . | . . . Average Slot Usage (%) 97 | . 97 98 Engine 13 | . 13 12 Leg 13 | . 12 28 Wheel 13 | . 14 . Device 3 | . 4 . Storage 13 | . 13 14 Processor 10 | . 10 14 Energy Gun 14 | . 14 14 Ballistic Gun 4 | . 4 . Launcher 6 | . 6 14 Peak Build Rating 12 | 9 12 10 Average Rating 9 | 5 9 9 On Entrance 6 | . 9 10 Naked Turns . | . . . Heaviest Build 26 | 8 26 20 Greatest Support 20 | 20 20 20 Greatest Overweight (x) 5 | . 5 1 Average Overweight (x) . | . . . Largest Inventory Capacity 15 | 5 15 10 Average Capacity 8 | 5 9 10 Most Carried 10 | 5 10 7 Average Carried 6 | 3 7 7 Final Capacity 10 | 5 10 10 Final Carried 7 | 5 7 7 Class Distribution -------------------- 77% | Mutant 22% | Scavenger-Mutant Dominant Class ---------------- Mutant | -10/Materials Mutant | -10/Mines Resources | -11 -10 -10 ----------- Run | Yrd Mat Min Matter Collected 819 | 390 398 31 Remotely . | . . . Salvage Created 778 | 143 478 157 Parts 61 | 12 41 8 Haulers Intercepted 1 | . 1 . Recyclers Shooed 3 | . 2 1 Parts Field Recycled . | . . . Retrieved Matter . | . . . Parts Self-Destructed . | . . . Prevented . | . . . Kills | -11 -10 -10 ------- Run | Yrd Mat Min Combat Hostiles Destroyed 31 | 1 10 20 Guns 9 | 1 7 1 AOE 22 | . 3 19 Classes Destroyed 10 | 3 5 2 Worker 8 | 1 4 3 Builder 3 | . 3 . Tunneler 5 | 4 1 . Hauler 1 | . 1 . Recycler 1 | . . 1 Mechanic 1 | . 1 . Watcher 3 | . 3 . Swarmer 3 | . 3 . Grunt 10 | 1 7 2 Assembled 18 | . . 18 Best Kill Streak 18 | 5 5 18 Combat Bots Only 18 | 1 3 18 Max Kills in Single Turn 3 | 1 2 3 Gunslinging . | . . . Exploded 3 | . 1 3 Melee . | . . . Uniques/NPCs Destroyed . | . . . Combat | -11 -10 -10 -------- Run | Yrd Mat Min Hostile Shots Fired 81 | 2 51 28 Missed 19 | 1 8 10 Damage Taken 1242 | 11 757 474 Core 262 | . 135 127 Absorbed by Shields . | . . . Core Remaining (%) 100 | 100 . . Volleys Fired 106 | 15 70 21 Largest 2 | 2 2 2 Hottest 130 | 120 130 98 Shots Fired 159 | 30 103 26 Gun 122 | 29 88 5 Cannon . | . . . Launcher 26 | . 5 21 Special 11 | 1 10 . Kinetic 76 | 15 61 . Thermal 57 | 15 37 5 Explosive 26 | . 5 21 Electromagnetic . | . . . Robot Hit Streak 12 | 8 12 5 Robot Miss Streak 6 | 2 6 3 Penetration Max . | . . . Secondary Targets 1 | . 1 . Max Gunslinging Chain 1 | . 1 . Shots Hit Robots 91 | 17 58 16 Core Hits 94 | 9 33 52 Critical Kills . | . . . Critical Parts Destroyed . | . . . Critical Strikes 2 | 1 1 . Burn 2 | 1 1 . Melee Attacks . | . . . Impact . | . . . Slashing . | . . . Piercing . | . . . Sneak Attacks . | . . . Combat Hostiles . | . . . Follow-up Attacks . | . . . Damage Inflicted 3037 | 165 1067 1805 Guns 789 | 165 579 45 Cannons . | . . . Explosions 2176 | . 416 1760 Melee . | . . . Ramming . | . . . Kinetic 464 | 80 384 . Thermal 438 | 85 308 45 Explosive 2135 | . 375 1760 Electromagnetic . | . . . Impact . | . . . Slashing . | . . . Piercing . | . . . Highest Corruption . | . . . Average Corruption . | . . . Corruption Purged . | . . . Corruption Blocked . | . . . Overload Shots . | . . . Overflow Damage 235 | . 183 52 Projectiles . | . . . Explosions 235 | . 183 52 Melee . | . . . Knockbacks . | . . . Impact . | . . . Kinetic . | . . . Secondary . | . . . Self-Inflicted Damage 193 | . 193 . Shots 3 | . 3 . Rammed . | . . . Targets Rammed . | . . . Kicked . | . . . Crushed . | . . . Highest Temperature 318 | 150 318 216 Average Temperature 87 | 58 89 126 Received Heat Transfer 291 | 6 240 45 Effects 4 | . 1 3 Interference 3 | . . 3 Damage (minor) 1 | . 1 . Siege Activations . | . . . Robots Corrupted . | . . . Combat Hostiles . | . . . Parts Fried . | . . . Impact Corruptions . | . . . Robots Melted . | . . . Combat Hostiles . | . . . Parts Melted . | . . . Heat Transferred 1199 | 333 755 111 Parts Sabotaged . | . . . Parts Stolen . | . . . Parts Stripped . | . . . Power Chain Reactions . | . . . Alert | -11 -10 -10 ------- Run | Yrd Mat Min Peak Influence 234 | 45 234 178 Initial 29 | . 29 1 Average 72 | 22 76 116 Maximum Alert Level 1 | . 1 . Low Security (%) 93 | 100 92 100 Level 1 6 | . 7 . Level 2 . | . . . Level 3 . | . . . Level 4 . | . . . Level 5 . | . . . High Security . | . . . Max Security . | . . . Squads Dispatched 2 | . 2 . Investigation 2 | . 2 . Extermination . | . . . Reinforcement . | . . . Assault . | . . . Garrison . | . . . Intercept . | . . . Searches Triggered . | . . . Construction Impeded . | . . . Haulers Reinforced . | . . . Active Scanning Responses . | . . . Cargo Convoy Interrupts . | . . . Stealth | -11 -10 -10 --------- Run | Yrd Mat Min Distress Signals 2 | . 2 . Communications Jammed . | . . . Distress Signals . | . . . Times Spotted 38 | 1 18 19 Peak Tracking Total 15 | 1 3 15 Tactical Retreats . | . . . Traps | -11 -10 -10 ------- Run | Yrd Mat Min Traps Triggered 4 | . 4 . Indirectly . | . . . Trap Hack Attempts . | . . . Triggered . | . . . Disarmed . | . . . Reprogrammed . | . . . Reused . | . . . Traps Extracted . | . . . Installed . | . . . Triggered . | . . . Machines | -11 -10 -10 ---------- Run | Yrd Mat Min Machines Disabled 5 | . 3 2 Max in Single Turn 3 | . 3 1 Machines Repaired . | . . . Machines Dismantled . | . . . Machines Sabotaged . | . . . Overloaded Fab Kills . | . . . Hacking | -11 -10 -10 --------- Run | Yrd Mat Min Machines Accessed 7 | . 7 . Terminals 4 | . 4 . Fabricators . | . . . Repair Stations 1 | . 1 . Recycling Units 2 | . 2 . Scanalyzers . | . . . Garrison Access . | . . . Total Hacks 27 | . 27 . Successful 16 | . 16 . Failed 11 | . 11 . Catastrophic 1 | . 1 . Database Lockouts . | . . . Manual . | . . . Terminals 16 | . 16 . Fabricators . | . . . Repair Stations 6 | . 6 . Recycling Units 5 | . 5 . Scanalyzers . | . . . Garrison Access . | . . . Terminal Hacks 10 | . 10 . Record 3 | . 3 . Prototype ID Bank 1 | . 1 . Emergency Access Points 2 | . 2 . Locate Traps 1 | . 1 . Maintenance Status 2 | . 2 . Zone Layout 1 | . 1 . Fabricator Hacks . | . . . Repair Station Hacks 1 | . 1 . Scan Component 1 | . 1 . Recycling Unit Hacks 5 | . 5 . Recycle Component 2 | . 2 . Process 1 | . 1 . Report Inventory 1 | . 1 . Retrieve Components 1 | . 1 . Scanalyzer . | . . . Garrison Access Hacks . | . . . Unauthorized Hacks . | . . . Terminals . | . . . Fabricators . | . . . Repair Stations . | . . . Recycling Units . | . . . Scanalyzers . | . . . Garrison Access . | . . . Data Cores Recovered . | . . . Used . | . . . Hacking Detections 5 | . 5 . Full Trace Events 5 | . 5 . Feedback Events . | . . . Feedback Blocked . | . . . Robot Schematics Acquired . | . . . Robots Built . | . . . Authchips . | . . . Time . | . . . Total Robot Build Rating . | . . . Part Schematics Acquired . | . . . Parts Built . | . . . Authchips . | . . . Time . | . . . Total Part Build Rating . | . . . Parts Repaired . | . . . Time . | . . . Parts Recycled 2 | . 2 . Recycled Matter 176 | . 176 . Retrieved Matter . | . . . Retrieved Components . | . . . Parts Scanalyzed . | . . . Part Schematics Acquired . | . . . Parts Damaged . | . . . Bothacking | -11 -10 -10 ------------ Run | Yrd Mat Min Used RIF Installer . | . . . Robots Hacked . | . . . Non-combat . | . . . Combat . | . . . Robot Hacks Applied . | . . . Relay Couplers Released . | . . . Fabnet Peak Effective % . | . . . Robots Rewired . | . . . Allies Hacked . | . . . Hacks Repelled . | . . . Allies | -11 -10 -10 -------- Run | Yrd Mat Min Total Allies . | . . . Largest Group . | . . . Highest-Rated Group . | . . . Highest-Rated Ally . | . . . Total Orders . | . . . Ally Attacks . | . . . Total Damage . | . . . Kills . | . . . Allies Corrupted . | . . . Allies Melted . | . . . Intel | -11 -10 -10 ------- Run | Yrd Mat Min Robot Analysis Total . | . . . Derelict Logs Recovered . | . . . Drone Launches . | . . . Drone Recoveries . | . . . Exploration | -11 -10 -10 ------------- Run | Yrd Mat Min Turns Passed 2254 | 269 1856 129 Spaces Moved 1690 | 174 1448 68 Core 29 | 21 8 . Treads . | . . . Legs 761 | 120 573 68 Wheels 900 | 33 867 . Hover . | . . . Flight . | . . . Fastest Speed 50 | 50 80 120 Average Speed 100 | 103 98 121 Slowest Speed 300 | 120 300 190 Overloaded Moves . | . . . Propulsion Burnouts . | . . . Robots Hopped . | . . . Cave-ins Triggered . | . . . Exploration Rate (%) 39 | 6 96 16 Regions Visited 2 Branch Regions 1 Pre-discovered Areas . | . . . Known Exits Taken . | . . . Unknown Exits Taken 2 | 1 1 . Scrap Searched . | . . . Spaces Dug 1 | 1 . . Terrain Destroyed 182 | 1 68 113 Melee . | . . . Projectile 4 | 1 3 . AOE 178 | . 65 113 Terrain Rammed . | . . . Walls Destroyed . | . . . Machines Disabled . | . . . Actions | -11 -10 -10 --------- Run | Yrd Mat Min Total 2091 | 234 1768 89 Wait 150 | 6 144 . Move 1688 | 173 1447 68 Hop . | . . . Pick Up 55 | 17 38 . Fast Attach 1 | . 1 . Attach 27 | 10 17 . Detach 4 | 1 3 . Swap 27 | 6 21 . Drop 33 | 6 27 . Fire 106 | 15 70 21 Melee . | . . . Ram . | . . . Kick . | . . . Crush . | . . . Escape Stasis . | . . . Rewire . | . . . Trap . | . . . Miscellaneous . | . . . Route ------- -11/Scrapyard -10/Materials (discovered 4 exits: [*Mat x3] / [*Min]) -10/Mines (discovered 1 exit: [*Mat]) History --------- Turn | Location | Event 2 | -11/Scrapyard | Met Revision 17 120 | -11/Scrapyard | Discovered new exit (range 8) 270 | -11/Scrapyard | Entered Materials 317 | -10/Materials | Build established: Mutant 580 | -10/Materials | Discovered new exit (range 10) 943 | -10/Materials | Discovered new exit (range 14) 991 | -10/Materials | Build established: Scavenger-Mutant 1127 | -10/Materials | Discovered new exit (range 15) 1208 | -10/Materials | Lost 6 parts (1p4n1w) 1302 | -10/Materials | Core integrity fell below 50% 1478 | -10/Materials | Build established: Mutant 1731 | -10/Materials | Discovered new exit (range 16) 2126 | -10/Materials | Entered Mines 2128 | -10/Mines | Discovered new exit (range 13) 2143 | -10/Mines | Met a Derelict bent on vengeance 2178 | -10/Mines | Assembled infested the area 2239 | -10/Mines | Destroyed 18 combat bots 2254 | -10/Mines | Core integrity fell below 20% 2255 | -10/Mines | Destroyed by D-53 Grenadier with Mini Grenade Launcher Last Messages --------------- as-24495 destroyed. K-01 Serf collects debris. Acquired 2 matter. The unstable cave ceiling collapses. K-01 Serf collects debris. The unstable cave ceiling collapses. K-01 Serf collects debris. Acquired 10 matter. The unstable cave ceiling collapses. K-01 Serf collects debris. Lgt. Ion Engine destroyed. The unstable cave ceiling collapses. Destroyed Tractor Beam. Aluminum Leg destroyed. K-01 Serf collects debris. The unstable cave ceiling collapses. Rocket Launcher destroyed. Aluminum Leg destroyed. The unstable cave ceiling collapses. [Achievement: First Step to Greatness] Map ----- +----------------------------------------------------+ | | | | | | | | | | | | | | | ??????????????????????????????????????? | | ??????????????????????????????????????? | | ??????????????????????????????????????? | | ??????############????????????????????? | | ??????# #????????????????????? | | ?????## ####?????????????????? | | ?????# * ###????????????????? | | ?????# ####?????????????? | | ?????# < ! # # ###???????????? | | ?????# ##??????????? | | ?????# ### #??????????? | | ?????# #??????????? | | ?????# # ## #??????????? | | ?????## # #### #?????????? | | ??????# = = ###??## ???????? | | ??????# k #????## ????? | | ??????## # ##?????######### ??? | | ???????### #???????????????? | | ?????????# @ #??????????????????? | | ?????????# #??????????????????? | | ???? #??????????????????? | | ?# !% # # #??????????????????? | | ?# """ ##??????????????????? | | ?# """=% # #?????????????????? | | ?????""" !# #?????????????????? | | ?????""" # #?????????????????? | | ????? ?# ##?????????????????? | | ????? ??# ddr #?????????????????? | | ????###???## ?????????????????? | | ??????????? # ###????????????????? | | ???????????# #??????????????????? | | ???????????## < ??????????????????? | | ?????????????# ##?????????????????? | | ?????????????? ???????????????????? | | ??????????????# ?????????????????????? | | ??????????????????????????????????????? | | ??????????????????????????????????????? | | ??????????????????????????????????????? | | ??????????????????????????????????????? | | ??????????????????????????????????????? | | ??????????????????????????????????????? | | ??????????????????????????????????????? | | ??????????????????????????????????????? | +----------------------------------------------------+ Best States ------------- Heat Dissipation 35 Energy Generation 10 Energy Capacity 250 Matter Stores 350 Matter Capacity 350 Sight Range 18 Terrain Scan Range 16 Terrain Scan Density 10 Evasion (%) 55 Targeting Accuracy 5 Item Schematics ----------------- None Robot Schematics ------------------ None Fabricated ------------ Nothing Alien Tech Used ----------------- None Achievements -------------- Crack Shot Exterminator First Step to Greatness Loot Pinata One Hack Too Far Storm Trooper Challenges ------------ None Game ------ Seed SniperReinforcedManipulator Manual? 0 Play Time 00:57:39 Cumulative 0.9 hours Start 2024.08.13 @ 06:01:05 End 2024.08.13 @ 07:02:24 Sessions 1 Manual Loads 0 Difficulty Rogue Special Mode None Game No. 1 Rogue 1 Adventurer 0 Explorer 0 Win Type - Total 0 Types 0/0/0/0/0/0/0/0/0 Lore% 0 Gallery% 1 Achievement% 2 Wizard Run 0 Options --------- Layout 1 ASCII 0 Keyboard 0 Movement Arrows Keybinds 0 Fullscreen 1 Font 24/Smallcaps Map View 50x40 Zoom Use 0% Tactical HUD 0 Map Filters NONE Filters NONE Steam 0 RUN: 78cf09dc-f57d-4053-963f-b0eaafe9f63b